[Event "ONJK-A 2019"]
[Site "Borne"]
[Date "2019.08.06"]
[Round "2.12"]
[White "Lettko, Michael"]
[Black "Hempler, Poul"]
[Result "0-1"]
[ECO "B12"]
[WhiteElo "1386"]
[BlackElo "1809"]
[Annotator "NA"]
[PlyCount "142"]
[EventDate "2019.08.05"]
[EventType "swiss"]
[EventCountry "NED"]
[SourceTitle "playchess.com"]
[Source "ChessBase"]
[SourceQuality "1"]
[TimeControl "5400+30"]

1. e4 {[%emt 0:01:45]} c6 {[%emt 0:00:00]} 2. d4 {[%emt 0:00:19]} d5 {[%emt 0:00:00]} 3. e5 {[%emt 0:00:25]} Bf5 {[%emt 0:00:22]} 4. Nf3 {[%emt 0:00:32]} e6 {[%emt 0:00:10]} 5. Be2 {[%emt 0:00:33]} c5 {[%emt 0:00:27]} 6. c3 {[%emt 0:00:30]} Nc6 {[%emt 0:00:16]} 7. Be3 {[%emt 0:03:23]} Qb6 {[%emt 0:02:16]} 8. Qb3 {[%emt 0:03:57]} Qxb3 {[%emt 0:02:32]} ({Better is} 8... c4 $11 9. Qxb6 axb6) 9. axb3 {[%emt 0:00:09]} cxd4 {[%emt 0:00:09]} 10. cxd4 {[%emt 0:01:23]} ({Better is} 10. Nxd4 $14 Nxd4 11. Bxd4 (11. cxd4 Bb4+ 12. Bd2 Bxd2+ 13. Kxd2 Ne7 $11)) 10... Nb4 $15 {[%emt 0:02:47]} 11. Bb5+ {[%emt 0:06:31]} Kd8 {[%emt 0:00:38]} 12. O-O {[%emt 0:00:31]} Ne7 {[%emt 0:03:03]} 13. Nc3 {[%emt 0:07:33]} Nec6 {[%emt 0:01:30]} 14. Na4 {[%emt 0:10:27]} Be7 {[%emt 0:02:49]} 15. Nc5 {[%emt 0:10:19]} Bxc5 {[%emt 0:05:00]} 16. dxc5 {[%emt 0:00:13]} Bd3 {[%emt 0:01:41]} 17. Bxc6 {[%emt 0:07:06]} Nxc6 {[%emt 0:00:25]} 18. Rfc1 {[%emt 0:04:51]} h6 {[%emt 0:01:30]} 19. Rc3 {[%emt 0:02:33]} Be2 {[%emt 0:09:38]} 20. Nd4 {[%emt 0:03:14]} Bh5 {[%emt 0:00:27]} 21. f4 {[%emt 0:02:04]} Kd7 {[%emt 0:02:13]} 22. Ra4 {[%emt 0:07:01]} a6 {[%emt 0:05:49]} 23. Rc1 {[%emt 0:03:46]} Rhc8 {[%emt 0:01:33]} 24. Raa1 {[%emt 0:02:01]} f6 {[%emt 0:19:23]} 25. Nxc6 {[%emt 0:04:34]} Rxc6 {[%emt 0:03:41]} 26. Bd4 {[%emt 0:02:17]} Rf8 {[%emt 0:03:05]} 27. g3 {[%emt 0:03:46]} fxe5 {[%emt 0:01:37]} 28. Bxe5 {[%emt 0:00:28]} Rf7 {[%emt 0:01:08]} 29. h4 {[%emt 0:01:36]} g5 {[%emt 0:03:01]} 30. hxg5 {[%emt 0:01:55]} hxg5 {[%emt 0:00:07]} 31. b4 {[%emt 0:00:31]} Rc8 {[%emt 0:01:09]} 32. Kf2 {[%emt 0:02:26]} gxf4 {[%emt 0:01:14]} 33. gxf4 {[%emt 0:00:27]} Kc6 {[%emt 0:01:10]} 34. Ke3 {[%emt 0:02:29]} Rg8 {[%emt 0:05:47]} 35. Rg1 {[%emt 0:00:45]} Rg4 {[%emt 0:02:37]} 36. Rxg4 {[%emt 0:00:56]} Bxg4 {[%emt 0:00:06]} 37. Rg1 {[%emt 0:00:18]} Bf5 {[%emt 0:00:20]} 38. Rg7 {[%emt 0:00:42]} Rxg7 {[%emt 0:00:48]} 39. Bxg7 {[%emt 0:00:10]} Kb5 {[%emt 0:00:10]} 40. Bc3 {[%emt 0:00:11]} Kc4 {[%emt 0:00:31]} 41. Kd2 {[%emt 0:01:43]} d4 {[%emt 0:00:42]} 42. b3+ {[%emt 0:00:09]} Kxb3 {[%emt 0:00:07]} 43. Bxd4 {[%emt 0:00:18]} Kxb4 {[%emt 0:00:10]} 44. Kc1 {[%emt 0:00:58]} Kb3 {[%emt 0:01:09]} 45. c6 {[%emt 0:01:52]} bxc6 {[%emt 0:00:43]} 46. Bb6 {[%emt 0:00:06]} Kc3 {[%emt 0:02:04]} 47. Ba5+ {[%emt 0:00:45]} Kd3 {[%emt 0:00:37]} 48. Kb2 {[%emt 0:00:17]} Ke3 {[%emt 0:02:55]} 49. Bc7 {[%emt 0:00:13]} Kd4 {[%emt 0:02:43]} 50. Bb6+ {[%emt 0:00:36]} c5 {[%emt 0:00:11]} 51. Kb3 {[%emt 0:01:37]} Bd3 {[%emt 0:00:59]} 52. Kb2 {[%emt 0:01:34]} Kd5 {[%emt 0:00:45]} 53. Kc3 {[%emt 0:00:43]} Kc6 {[%emt 0:02:03]} 54. Bd8 {[%emt 0:00:44]} c4 {[%emt 0:01:21]} 55. Kb4 {[%emt 0:00:29]} Kd5 {[%emt 0:00:20]} 56. Kc3 {[%emt 0:00:16]} Kc5 {[%emt 0:00:26]} 57. Ba5 {[%emt 0:00:50]} Kb5 {[%emt 0:00:20]} 58. Bb4 {[%emt 0:00:12]} Bb1 {[%emt 0:04:18]} 59. Be7 {[%emt 0:00:16]} Ba2 {[%emt 0:00:29]} 60. Kb2 {[%emt 0:00:11]} Bb3 {[%emt 0:00:26]} 61. Bf8 {[%emt 0:00:37]} Kc6 {[%emt 0:00:28]} 62. Kc3 {[%emt 0:00:24]} Kd5 {[%emt 0:00:22]} 63. Bb4 {[%emt 0:00:45]} Ke4 {[%emt 0:00:30]} 64. Bd6 {[%emt 0:00:12]} a5 {[%emt 0:00:14]} 65. Be5 {[%emt 0:00:50]} a4 {[%emt 0:00:21]} 66. Kb2 {[%emt 0:00:11]} Kd3 {[%emt 0:00:44]} 67. Bf6 {[%emt 0:01:28]} Bd1 {[%emt 0:01:00]} 68. Kc1 {[%emt 0:00:34]} c3 {[%emt 0:02:23]} 69. Kxd1 {[%emt 0:00:29]} a3 {[%emt 0:00:08]} 70. Kc1 {[%emt 0:00:13]} a2 {[%emt 0:00:09]} 71. Bxc3 {[%emt 0:00:07]} Kxc3 {[%emt 0:00:08]} 0-1

[Event "ONJK-A 2019"]
[Site "Borne"]
[Date "2019.08.06"]
[Round "3.1"]
[White "Maerevoet, Sim"]
[Black "Baselmans, Sam"]
[Result "1-0"]
[ECO "E70"]
[WhiteElo "2321"]
[BlackElo "2064"]
[Annotator "NA"]
[PlyCount "123"]
[EventDate "2019.08.05"]
[EventType "swiss"]
[EventCountry "NED"]
[SourceTitle "playchess.com"]
[Source "ChessBase"]
[SourceQuality "1"]
[TimeControl "5400+30"]

1. d4 {[%emt 0:00:00]} Nf6 {[%emt 0:00:00]} 2. c4 {[%emt 0:00:00]} g6 {[%emt 0:00:00]} 3. Nc3 {[%emt 0:00:19]} Bg7 {[%emt 0:00:00]} 4. e4 {[%emt 0:00:07]} d6 {[%emt 0:00:00]} 5. Bd3 {[%emt 0:00:06]} O-O {[%emt 0:00:33]} 6. Nge2 {[%emt 0:00:10]} e5 {[%emt 0:08:20]} 7. d5 {[%emt 0:00:20]} Na6 {[%emt 0:02:51]} 8. a3 {[%emt 0:01:28]} Nc5 {[%emt 0:03:02]} 9. Bc2 {[%emt 0:00:12]} a5 {[%emt 0:00:04]} 10. Rb1 {[%emt 0:00:22]} Nh5 {[%emt 0:03:21]} 11. O-O {[%emt 0:00:38]} f5 {[%emt 0:00:22]} 12. exf5 {[%emt 0:00:23]} gxf5 {[%emt 0:00:32]} 13. f3 {[%emt 0:00:58]} Kh8 {[%emt 0:01:15]} 14. b4 {[%emt 0:02:02]} axb4 {[%emt 0:02:34]} 15. axb4 {[%emt 0:00:08]} Na6 {[%emt 0:01:26]} 16. Be3 {[%emt 0:02:56]} b6 {[%emt 0:00:17]} 17. Qd2 {[%emt 0:06:24]} Rg8 {[%emt 0:03:02]} 18. f4 {[%emt 0:06:52]} Qf6 {[%emt 0:02:14]} 19. Nb5 {[%emt 0:02:18]} Qg6 {[%emt 0:03:05]} 20. Rf2 {[%emt 0:06:22]} Bd7 {[%emt 0:01:21]} 21. Rbf1 {[%emt 0:03:32]} Raf8 {[%emt 0:01:17]} 22. Kh1 {[%emt 0:02:49]} Nf6 {[%emt 0:01:25]} 23. fxe5 {[%emt 0:02:06]} dxe5 {[%emt 0:02:18]} 24. h3 {[%emt 0:13:48]} Nh5 {[%emt 0:03:47]} 25. g4 {[%emt 0:02:52]} Bf6 {[%emt 0:05:30]} 26. Bxf5 {[%emt 0:02:14]} Bxf5 {[%emt 0:00:13]} 27. Rxf5 {[%emt 0:00:09]} Ng7 {[%emt 0:00:24]} 28. R5f3 {[%emt 0:05:24]} Qe4 {[%emt 0:00:46]} 29. Nbc3 {[%emt 0:05:03]} Qg6 {[%emt 0:00:39]} 30. Ng3 {[%emt 0:00:48]} Be7 {[%emt 0:04:12]} 31. Rxf8 {[%emt 0:00:48]} Bxf8 {[%emt 0:01:57]} 32. Nce4 {[%emt 0:00:43]} Bxb4 {[%emt 0:01:43]} 33. Qb2 {[%emt 0:00:23]} Bc5 {[%emt 0:04:06]} 34. Rf6 {[%emt 0:10:53]} Qe8 {[%emt 0:01:18]} 35. Ng5 {[%emt 0:02:09]} Rf8 {[%emt 0:02:59]} 36. Qb1 {[%emt 0:01:17]} e4 {[%emt 0:00:13]} 37. Rxf8+ {[%emt 0:00:32]} Bxf8 {[%emt 0:00:19]} 38. Qxe4 {[%emt 0:00:17]} Qxe4+ {[%emt 0:01:00]} 39. N3xe4 {[%emt 0:00:06]} Be7 {[%emt 0:00:42]} 40. Kg2 {[%emt 0:01:30]} Kg8 {[%emt 0:00:12]} 41. Kg3 {[%emt 0:01:17]} Nb4 {[%emt 0:02:30]} 42. Nc3 {[%emt 0:05:46]} Nd3 {[%emt 0:08:05]} 43. Nge4 {[%emt 0:02:38]} Ne8 {[%emt 0:00:50]} 44. Nb5 {[%emt 0:00:52]} Kf7 {[%emt 0:05:45]} 45. Bd4 {[%emt 0:00:24]} Nb4 {[%emt 0:03:56]} 46. h4 {[%emt 0:00:55]} Nc2 {[%emt 0:02:18]} 47. g5 {[%emt 0:01:08]} Nxd4 {[%emt 0:02:57]} 48. Nxd4 {[%emt 0:00:06]} Nd6 {[%emt 0:01:31]} 49. Nxd6+ {[%emt 0:00:44]} Bxd6+ {[%emt 0:00:32]} 50. Kg4 {[%emt 0:00:05]} Bh2 {[%emt 0:00:55]} 51. Kf5 {[%emt 0:01:02]} Bg3 {[%emt 0:00:55]} 52. h5 {[%emt 0:00:06]} Bh2 {[%emt 0:01:14]} 53. Nc6 {[%emt 0:00:31]} Bd6 {[%emt 0:00:49]} 54. Nd8+ {[%emt 0:01:48]} Ke8 {[%emt 0:00:47]} 55. g6 {[%emt 0:00:54]} hxg6+ {[%emt 0:00:05]} 56. hxg6 {[%emt 0:00:04]} Kf8 {[%emt 0:00:36]} 57. Ne6+ {[%emt 0:00:27]} Ke7 {[%emt 0:00:21]} 58. Kg5 {[%emt 0:02:04]} Be5 {[%emt 0:00:54]} 59. Kf5 {[%emt 0:00:49]} Bd6 {[%emt 0:02:10]} 60. Nd4 {[%emt 0:00:18]} Kf8 {[%emt 0:02:28]} 61. Ke6 {[%emt 0:00:39]} Kg7 {[%emt 0:01:53]} 62. Nf5+ {[%emt 0:00:16]} 1-0

[Event "ONJK-A 2019"]
[Site "Borne"]
[Date "2019.08.06"]
[Round "3.2"]
[White "Baselmans, Luuk"]
[Black "Shakhverdian, William"]
[Result "1/2-1/2"]
[ECO "C54"]
[WhiteElo "2250"]
[BlackElo "2045"]
[Annotator "NA"]
[PlyCount "131"]
[EventDate "2019.08.05"]
[EventType "swiss"]
[EventCountry "NED"]
[SourceTitle "playchess.com"]
[Source "ChessBase"]
[SourceQuality "1"]
[TimeControl "5400+30"]

1. e4 {[%emt 0:00:00]} e5 {[%emt 0:00:00]} 2. Nf3 {[%emt 0:00:00]} Nc6 {[%emt 0:00:04]} 3. d4 {[%emt 0:00:11]} exd4 {[%emt 0:00:11]} 4. Bc4 {[%emt 0:00:08]} Bc5 {[%emt 0:01:00]} 5. c3 {[%emt 0:00:20]} Nf6 {[%emt 0:00:28]} 6. e5 {[%emt 0:00:14]} d5 {[%emt 0:00:05]} 7. Bb5 {[%emt 0:00:08]} Ne4 {[%emt 0:00:12]} 8. cxd4 {[%emt 0:00:23]} Bb6 {[%emt 0:00:42]} 9. Nc3 {[%emt 0:00:28]} O-O {[%emt 0:00:23]} 10. Be3 {[%emt 0:00:11]} Bg4 {[%emt 0:01:17]} 11. h3 {[%emt 0:00:39]} Bh5 {[%emt 0:00:07]} 12. Qc2 {[%emt 0:00:39]} Bg6 {[%emt 0:00:05]} 13. Qb3 {[%emt 0:00:07]} Ne7 {[%emt 0:00:07]} 14. O-O {[%emt 0:00:18]} c6 {[%emt 0:00:03]} 15. Bd3 {[%emt 0:00:18]} Nd2 {[%emt 0:06:00]} 16. Nxd2 {[%emt 0:01:16]} Bxd3 {[%emt 0:00:06]} 17. Rfe1 {[%emt 0:00:15]} Bg6 {[%emt 0:01:34]} 18. Na4 {[%emt 0:04:03]} Nf5 {[%emt 0:01:26]} 19. Nf3 {[%emt 0:03:09]} Nxe3 {[%emt 0:02:16]} 20. Rxe3 {[%emt 0:01:13]} Bh5 {[%emt 0:03:22]} 21. Nxb6 {[%emt 0:09:39]} Qxb6 {[%emt 0:00:24]} 22. g4 {[%emt 0:01:26]} Bg6 {[%emt 0:00:33]} 23. Rae1 {[%emt 0:10:56]} Rfe8 {[%emt 0:08:31]} 24. Qa3 {[%emt 0:03:33]} Qd8 {[%emt 0:04:28]} 25. Rb3 {[%emt 0:01:38]} Qe7 {[%emt 0:01:11]} 26. Qxe7 {[%emt 0:00:41]} Rxe7 {[%emt 0:00:07]} 27. Nd2 {[%emt 0:01:23]} f5 {[%emt 0:06:27]} 28. f4 {[%emt 0:01:20]} Rf8 {[%emt 0:01:42]} 29. Rf1 {[%emt 0:01:03]} b6 {[%emt 0:02:03]} 30. Rc3 {[%emt 0:01:16]} Be8 {[%emt 0:01:05]} 31. Kh2 {[%emt 0:01:40]} Bd7 {[%emt 0:05:43]} 32. Kg3 {[%emt 0:00:33]} h6 {[%emt 0:01:06]} 33. Rf2 {[%emt 0:04:58]} Kh7 {[%emt 0:03:09]} 34. Nf3 {[%emt 0:00:37]} g6 {[%emt 0:03:37]} 35. Re2 {[%emt 0:02:28]} Rc8 {[%emt 0:02:53]} 36. b4 {[%emt 0:01:23]} Be6 {[%emt 0:01:19]} 37. Rec2 {[%emt 0:02:52]} Rec7 {[%emt 0:01:19]} 38. Ne1 {[%emt 0:00:40]} fxg4 {[%emt 0:02:17]} 39. hxg4 {[%emt 0:00:30]} h5 {[%emt 0:00:22]} 40. gxh5 {[%emt 0:02:29]} gxh5 {[%emt 0:00:10]} 41. Nf3 {[%emt 0:00:15]} Bf5 {[%emt 0:01:19]} 42. Rh2 {[%emt 0:00:58]} Kh6 {[%emt 0:00:30]} 43. Ng5 {[%emt 0:05:24]} c5 {[%emt 0:00:20]} 44. bxc5 {[%emt 0:02:30]} bxc5 {[%emt 0:00:04]} 45. Rxc5 {[%emt 0:02:27]} Rxc5 {[%emt 0:00:08]} 46. dxc5 {[%emt 0:00:04]} Rxc5 {[%emt 0:00:23]} 47. e6 {[%emt 0:03:58]} Rc3+ {[%emt 0:01:15]} 48. Kh4 {[%emt 0:00:24]} Re3 {[%emt 0:01:26]} 49. Rd2 {[%emt 0:00:29]} Bxe6 {[%emt 0:00:42]} 50. Nxe6 {[%emt 0:00:19]} Rxe6 {[%emt 0:00:04]} 51. Rxd5 {[%emt 0:00:04]} Ra6 {[%emt 0:00:23]} 52. Rxh5+ {[%emt 0:00:27]} Kg7 {[%emt 0:01:04]} 53. Rc5 {[%emt 0:01:05]} Rxa2 {[%emt 0:03:13]} 54. Kg5 {[%emt 0:00:07]} Ra6 {[%emt 0:03:36]} 55. Rc7+ {[%emt 0:00:10]} Kf8 {[%emt 0:05:51]} 56. f5 {[%emt 0:00:26]} Rb6 {[%emt 0:01:52]} 57. Rxa7 {[%emt 0:00:15]} Rc6 {[%emt 0:01:18]} 58. Ra8+ {[%emt 0:00:26]} Kf7 {[%emt 0:00:57]} 59. Rh8 {[%emt 0:00:25]} Kg7 {[%emt 0:00:55]} 60. Rh1 {[%emt 0:00:31]} Ra6 {[%emt 0:01:41]} 61. Rb1 {[%emt 0:00:22]} Rc6 {[%emt 0:03:13]} 62. Re1 {[%emt 0:00:07]} Kf7 {[%emt 0:00:57]} 63. Ra1 {[%emt 0:00:15]} Rb6 {[%emt 0:00:40]} 64. Ra7+ {[%emt 0:00:06]} Kf8 {[%emt 0:00:11]} 65. f6 {[%emt 0:00:05]} Rb1 {[%emt 0:00:56]} 66. Kg6 {[%emt 0:00:14]} 1/2-1/2

[Event "ONJK-A 2019"]
[Site "Borne"]
[Date "2019.08.06"]
[Round "3.3"]
[White "Emans, Job"]
[Black "Noordenbos, Daan"]
[Result "0-1"]
[ECO "E99"]
[WhiteElo "2089"]
[BlackElo "2042"]
[Annotator "NA"]
[PlyCount "110"]
[EventDate "2019.08.05"]
[EventType "swiss"]
[EventCountry "NED"]
[SourceTitle "playchess.com"]
[Source "ChessBase"]
[SourceQuality "1"]
[TimeControl "5400+30"]

1. d4 {[%emt 0:00:00]} Nf6 {[%emt 0:00:00]} 2. c4 {[%emt 0:00:11]} g6 {[%emt 0:00:00]} 3. Nc3 {[%emt 0:00:16]} Bg7 {[%emt 0:00:00]} 4. e4 {[%emt 0:00:11]} d6 {[%emt 0:00:00]} 5. Nf3 {[%emt 0:00:12]} O-O {[%emt 0:00:07]} 6. Be2 {[%emt 0:00:07]} e5 {[%emt 0:00:08]} 7. O-O {[%emt 0:00:15]} Nc6 {[%emt 0:00:04]} 8. d5 {[%emt 0:00:28]} Ne7 {[%emt 0:00:02]} 9. Ne1 {[%emt 0:00:31]} Nd7 {[%emt 0:01:28]} 10. Nd3 {[%emt 0:00:14]} f5 {[%emt 0:00:09]} 11. f3 {[%emt 0:00:21]} f4 {[%emt 0:00:08]} 12. Bd2 {[%emt 0:00:43]} g5 {[%emt 0:00:57]} 13. Rc1 {[%emt 0:02:47]} h5 {[%emt 0:10:45]} 14. Nf2 {[%emt 0:02:02]} Rf6 {[%emt 0:09:35]} 15. b4 {[%emt 0:07:00]} Rg6 {[%emt 0:03:56]} 16. c5 {[%emt 0:14:29]} dxc5 {[%emt 0:12:30]} 17. bxc5 {[%emt 0:00:13]} Nxc5 {[%emt 0:00:20]} 18. Nb5 {[%emt 0:00:45]} Na6 {[%emt 0:00:16]} 19. Qb3 {[%emt 0:15:26]} Kh7 {[%emt 0:03:05]} 20. Rfd1 {[%emt 0:01:37]} Ng8 {[%emt 0:05:15]} 21. h3 {[%emt 0:05:42]} Nh6 {[%emt 0:06:21]} 22. Be1 {[%emt 0:01:04]} b6 {[%emt 0:11:32]} 23. Qc4 {[%emt 0:26:20]} Nc5 {[%emt 0:01:41]} 24. Bb4 {[%emt 0:00:40]} Bf8 {[%emt 0:08:54]} 25. Nd3 {[%emt 0:03:16]} g4 {[%emt 0:08:41]} 26. hxg4 {[%emt 0:00:57]} hxg4 {[%emt 0:02:33]} 27. Nxc5 {[%emt 0:02:49]} g3 {[%emt 0:06:48]} 28. Kf1 {[%emt 0:00:11]} Qh4 {[%emt 0:00:49]} 29. Ke1 {[%emt 0:00:03]} bxc5 {[%emt 0:02:13]} 30. Bxc5 {[%emt 0:00:21]} Bd6 {[%emt 0:01:05]} 31. Bxd6 {[%emt 0:00:31]} cxd6 {[%emt 0:00:09]} 32. Qc7+ {[%emt 0:00:26]} Rg7 {[%emt 0:00:52]} 33. Qxd6 {[%emt 0:01:09]} Qh1+ {[%emt 0:00:17]} 34. Bf1 {[%emt 0:03:24]} Nf7 {[%emt 0:00:58]} 35. Qc5 {[%emt 0:01:27]} Bh3 {[%emt 0:01:27]} 36. Qc2 {[%emt 0:00:47]} Ng5 {[%emt 0:01:48]} 37. Qe2 {[%emt 0:00:35]} Nxf3+ {[%emt 0:00:53]} 38. Qxf3 {[%emt 0:04:51]} Bg4 {[%emt 0:00:10]} 39. Qd3 {[%emt 0:00:52]} f3 {[%emt 0:00:37]} 40. Rc2 {[%emt 0:00:23]} Rc8 {[%emt 0:02:36]} 41. Nc3 {[%emt 0:05:28]} f2+ {[%emt 0:00:22]} 42. Kd2 {[%emt 0:00:22]} Qh6+ {[%emt 0:00:01]} 43. Qe3 {[%emt 0:01:18]} Qxe3+ {[%emt 0:00:06]} 44. Kxe3 {[%emt 0:00:03]} Bxd1 {[%emt 0:00:06]} 45. Rc1 {[%emt 0:00:06]} Rgc7 {[%emt 0:00:46]} 46. Kd2 {[%emt 0:00:26]} Bg4 {[%emt 0:00:22]} 47. Ne2 {[%emt 0:01:15]} Bxe2 {[%emt 0:00:19]} 48. Rxc7+ {[%emt 0:00:05]} Rxc7 {[%emt 0:00:14]} 49. Bxe2 {[%emt 0:00:03]} Rf7 {[%emt 0:00:38]} 50. Bf1 {[%emt 0:00:10]} Kg7 {[%emt 0:00:13]} 51. Kc3 {[%emt 0:01:15]} Rf4 {[%emt 0:00:27]} 52. Kd3 {[%emt 0:00:36]} Kf8 {[%emt 0:00:11]} 53. Ke3 {[%emt 0:00:31]} Ke7 {[%emt 0:00:05]} 54. Kd3 {[%emt 0:00:53]} Rh4 {[%emt 0:00:10]} 55. Ke3 {[%emt 0:00:17]} Rh1 {[%emt 0:00:06] Kd4} 0-1

[Event "ONJK-A 2019"]
[Site "Borne"]
[Date "2019.08.06"]
[Round "3.4"]
[White "De Bock, Thijs"]
[Black "Van Malder, Dries"]
[Result "1/2-1/2"]
[ECO "B67"]
[WhiteElo "1870"]
[BlackElo "2178"]
[Annotator "NA"]
[PlyCount "40"]
[EventDate "2019.08.05"]
[EventType "swiss"]
[EventCountry "NED"]
[SourceTitle "playchess.com"]
[Source "ChessBase"]
[SourceQuality "1"]
[TimeControl "5400+30"]

1. e4 {[%emt 0:00:00]} c5 {[%emt 0:00:00]} 2. Nf3 {[%emt 0:00:00]} d6 {[%emt 0:00:00]} 3. d4 {[%emt 0:00:00]} cxd4 {[%emt 0:00:00]} 4. Nxd4 {[%emt 0:00:00]} Nf6 {[%emt 0:00:06]} 5. Nc3 {[%emt 0:00:00]} Nc6 {[%emt 0:00:09]} 6. Bg5 {[%emt 0:00:00]} e6 {[%emt 0:00:28]} 7. Qd2 {[%emt 0:00:02]} a6 {[%emt 0:00:06]} 8. O-O-O {[%emt 0:00:04]} Bd7 {[%emt 0:00:06]} 9. f4 {[%emt 0:00:06]} b5 {[%emt 0:00:03]} 10. Bxf6 {[%emt 0:00:04]} gxf6 {[%emt 0:00:05]} 11. Kb1 {[%emt 0:00:06]} Qb6 {[%emt 0:00:08]} 12. Nxc6 {[%emt 0:00:05]} Bxc6 {[%emt 0:00:05]} 13. f5 {[%emt 0:00:06]} Qc5 {[%emt 0:00:05]} 14. Bd3 {[%emt 0:08:57]} O-O-O {[%emt 0:00:57]} 15. Ne2 {[%emt 0:02:05]} Be7 {[%emt 0:13:00]} 16. Qh6 {[%emt 0:06:27]} Rdg8 {[%emt 0:09:36]} 17. Nf4 {[%emt 0:00:47]} Qe5 {[%emt 0:05:17]} 18. Rhe1 {[%emt 0:02:48]} Rg5 {[%emt 0:06:04]} 19. g3 {[%emt 0:00:06]} Bd7 {[%emt 0:07:02]} 20. c4 {[%emt 0:08:27]} Kb7 {[%emt 0:04:29]} 1/2-1/2

[Event "ONJK-A 2019"]
[Site "Borne"]
[Date "2019.08.06"]
[Round "3.5"]
[White "Ypma, Jord"]
[Black "Vleming, Stefan"]
[Result "1-0"]
[ECO "A48"]
[WhiteElo "1984"]
[BlackElo "1760"]
[Annotator "NA"]
[PlyCount "48"]
[EventDate "2019.08.05"]
[EventType "swiss"]
[EventCountry "NED"]
[SourceTitle "playchess.com"]
[Source "ChessBase"]
[SourceQuality "1"]
[TimeControl "5400+30"]

1. d4 {[%emt 0:00:00]} Nf6 {[%emt 0:00:00]} 2. Bf4 {[%emt 0:00:25]} c5 {[%emt 0:00:11]} 3. e3 {[%emt 0:00:19]} g6 {[%emt 0:00:39]} 4. c3 {[%emt 0:01:12]} Bg7 {[%emt 0:00:35]} 5. Nf3 {[%emt 0:00:23]} O-O {[%emt 0:00:41]} 6. Nbd2 {[%emt 0:00:56]} cxd4 {[%emt 0:05:22]} 7. exd4 {[%emt 0:00:51]} d6 {[%emt 0:01:38]} 8. Bc4 {[%emt 0:03:17]} Bf5 {[%emt 0:01:28]} 9. O-O {[%emt 0:02:21]} Nbd7 {[%emt 0:04:02]} 10. Re1 {[%emt 0:01:06]} Re8 {[%emt 0:06:08]} 11. Qb3 {[%emt 0:03:47]} e6 {[%emt 0:02:44]} 12. Bxd6 {[%emt 0:02:12]} Nb6 {[%emt 0:01:29]} 13. Be5 {[%emt 0:03:37]} Rc8 {[%emt 0:01:55]} 14. Bb5 {[%emt 0:01:55]} Re7 {[%emt 0:00:24]} 15. h3 {[%emt 0:01:25]} h5 {[%emt 0:01:59]} 16. Nh2 {[%emt 0:06:08]} a6 {[%emt 0:02:58]} 17. Bf1 {[%emt 0:06:51]} g5 {[%emt 0:05:03]} 18. Qd1 {[%emt 0:03:32]} Nbd5 {[%emt 0:02:58]} 19. Nhf3 {[%emt 0:07:33]} g4 {[%emt 0:05:07]} 20. Nh4 {[%emt 0:03:29]} Bh7 {[%emt 0:08:01]} 21. g3 {[%emt 0:02:43]} b5 {[%emt 0:04:17]} 22. hxg4 {[%emt 0:02:54]} Nxg4 {[%emt 0:01:30]} 23. Bxg7 {[%emt 0:00:30]} Kxg7 {[%emt 0:00:09]} 24. Be2 {[%emt 0:16:11]} Nde3 {[%emt 0:15:38]} 1-0

[Event "ONJK-A 2019"]
[Site "Borne"]
[Date "2019.08.06"]
[Round "3.6"]
[White "De Vries, Tobias"]
[Black "Hilwerda, Jonas"]
[Result "0-1"]
[ECO "A04"]
[WhiteElo "1868"]
[BlackElo "2263"]
[Annotator "NA"]
[PlyCount "24"]
[EventDate "2019.08.05"]
[EventType "swiss"]
[EventCountry "NED"]
[SourceTitle "playchess.com"]
[Source "ChessBase"]
[SourceQuality "1"]
[TimeControl "5400+30"]

1. Nf3 {[%emt 0:02:20]} f5 {[%emt 0:00:00]} 2. e4 {[%emt 0:00:12]} fxe4 {[%emt 0:00:37]} 3. Ng5 {[%emt 0:00:06]} Nf6 {[%emt 0:11:03]} 4. d3 {[%emt 0:00:57]} e5 {[%emt 0:02:53]} 5. dxe4 {[%emt 0:00:31]} h6 {[%emt 0:00:15]} 6. Nf3 {[%emt 0:00:29]} d6 {[%emt 0:02:18]} 7. Bc4 {[%emt 0:03:42]} Bg4 {[%emt 0:00:52]} 8. Bf7+ {[%emt 0:01:39]} Kxf7 {[%emt 0:00:53]} 9. Nxe5+ {[%emt 0:00:15]} dxe5 {[%emt 0:00:06]} 10. Qxd8 {[%emt 0:03:37]} Bb4+ {[%emt 0:00:10]} 11. c3 {[%emt 0:00:08]} Rxd8 {[%emt 0:00:07]} 12. cxb4 {[%emt 0:00:04]} Rd1# {[%emt 0:00:03]} 0-1

[Event "ONJK-A 2019"]
[Site "Borne"]
[Date "2019.08.06"]
[Round "3.7"]
[White "Hempler, Poul"]
[Black "Boudry, William"]
[Result "1-0"]
[ECO "E14"]
[WhiteElo "1809"]
[BlackElo "2033"]
[Annotator "NA"]
[PlyCount "71"]
[EventDate "2019.08.05"]
[EventType "swiss"]
[EventCountry "NED"]
[SourceTitle "playchess.com"]
[Source "ChessBase"]
[SourceQuality "1"]
[TimeControl "5400+30"]

1. e4 {[%emt 0:00:00]} b6 {[%emt 0:00:00]} 2. c4 {[%emt 0:00:34]} Bb7 {[%emt 0:01:00]} 3. Nc3 {[%emt 0:00:07]} e6 {[%emt 0:00:15]} 4. d4 {[%emt 0:00:11]} Bb4 {[%emt 0:00:09]} 5. d5 {[%emt 0:02:28]} Nf6 {[%emt 0:04:20]} 6. Bd3 {[%emt 0:04:07]} exd5 {[%emt 0:01:14]} 7. cxd5 {[%emt 0:00:49]} O-O {[%emt 0:00:17]} 8. Nf3 {[%emt 0:00:35]} Re8 {[%emt 0:00:29]} 9. Nd2 {[%emt 0:10:32]} Bxc3 {[%emt 0:00:42]} 10. bxc3 {[%emt 0:00:19]} Nxd5 {[%emt 0:01:00]} 11. Qc2 {[%emt 0:01:56]} Nf4 {[%emt 0:00:43]} 12. O-O {[%emt 0:01:01]} Nxd3 {[%emt 0:00:52]} 13. Qxd3 {[%emt 0:00:08]} Ba6 {[%emt 0:00:09]} 14. c4 {[%emt 0:00:41]} Qf6 {[%emt 0:00:41]} 15. Rb1 {[%emt 0:02:50]} Nc6 {[%emt 0:02:45]} 16. Qxd7 {[%emt 0:12:56]} Ne5 {[%emt 0:01:16]} 17. Qa4 {[%emt 0:01:42]} Bb7 {[%emt 0:00:08]} 18. Bb2 {[%emt 0:01:41]} Qg6 {[%emt 0:01:32]} 19. Bxe5 {[%emt 0:07:44]} Rxe5 {[%emt 0:00:23]} 20. f3 {[%emt 0:00:41]} Rh5 {[%emt 0:01:05]} 21. Qd7 {[%emt 0:04:42]} Rc5 {[%emt 0:02:08]} 22. Rbc1 {[%emt 0:05:35]} Qf6 {[%emt 0:02:56]} 23. Nb3 {[%emt 0:02:31]} Rd8 {[%emt 0:00:38]} 24. Qa4 {[%emt 0:03:18]} Rh5 {[%emt 0:01:43]} 25. Qxa7 {[%emt 0:02:12]} Qc6 {[%emt 0:00:28]} 26. Rfd1 {[%emt 0:01:14]} Re8 {[%emt 0:00:49]} 27. Rd5 {[%emt 0:04:01]} Rh4 {[%emt 0:04:31]} 28. Rcd1 {[%emt 0:04:28]} h6 {[%emt 0:00:26]} 29. Nd4 {[%emt 0:02:16]} Qf6 {[%emt 0:04:36]} 30. Qxb7 {[%emt 0:01:35]} Qf4 {[%emt 0:00:03]} 31. h3 {[%emt 0:02:53]} Qe3+ {[%emt 0:01:02]} 32. Kf1 {[%emt 0:00:51]} Rxh3 {[%emt 0:07:20]} 33. gxh3 {[%emt 0:02:41]} Re6 {[%emt 0:00:03]} 34. Qxc7 {[%emt 0:01:09]} Rf6 {[%emt 0:00:48]} 35. Qg3 {[%emt 0:03:13]} Qxe4 {[%emt 0:00:06]} 36. Qf2 {[%emt 0:03:53]} 1-0